[Event "50th La Roda Open 2024"]
[Site "La Roda"]
[Date "2024.03.30"]
[Round "6.10"]
[White "Hapala, Elisabeth"]
[Black "Cruz Lledo, Pablo"]
[Result "0-1"]
[ECO "B01"]
[WhiteElo "2015"]
[BlackElo "2353"]
[Annotator "RC"]
[PlyCount "108"]
[EventDate "2024.03.27"]
[EventType "swiss"]
[EventCountry "ESP"]
[SourceTitle "playchess.com"]
[Source "ChessBase"]
[SourceQuality "1"]
[TimeControl "5400+30"]

1. e4 {[%emt 0:00:01]} d5 {[%emt 0:05:34]} 2. exd5 {[%emt 0:00:05]} Qxd5 {[%emt 0:00:04]} 3. Nc3 {[%emt 0:00:05]} Qd6 {[%emt 0:00:04]} 4. d4 {[%emt 0:00:06]} Nf6 {[%emt 0:00:04]} 5. Nf3 {[%emt 0:00:03]} g6 {[%emt 0:00:09]} 6. Nb5 {[%emt 0:00:31]} Qb6 {[%emt 0:00:21]} 7. a4 {[%emt 0:00:19]} c6 {[%emt 0:00:41]} 8. a5 {[%emt 0:00:15]} Qd8 {[%emt 0:00:06]} 9. Nc3 {[%emt 0:00:17]} Bg7 {[%emt 0:01:39]} 10. h3 {[%emt 0:00:28]} O-O {[%emt 0:00:08]} 11. Bc4 {[%emt 0:00:43]} Bf5 {[%emt 0:12:50]} 12. Nh4 {[%emt 0:02:55]} Be4 {[%emt 0:01:05]} 13. Nxe4 {[%emt 0:09:40]} Nxe4 {[%emt 0:00:07]} 14. Nf3 {[%emt 0:00:30]} e5 {[%emt 0:06:03]} 15. Be3 {[%emt 0:05:43]} Nd6 {[%emt 0:04:01]} 16. Bb3 {[%emt 0:16:00]} e4 {[%emt 0:05:14]} 17. Ne5 {[%emt 0:13:54]} Nf5 {[%emt 0:06:39]} 18. Qd2 {[%emt 0:17:47]} c5 {[%emt 0:05:45]} 19. c3 {[%emt 0:00:28]} cxd4 {[%emt 0:00:56]} 20. cxd4 {[%emt 0:01:08]} Nc6 {[%emt 0:01:41]} 21. Nxc6 {[%emt 0:11:53]} bxc6 {[%emt 0:00:09]} 22. O-O {[%emt 0:00:09]} Rb8 {[%emt 0:02:26]} 23. Ba4 {[%emt 0:19:00]} Nxd4 {[%emt 0:00:53]} 24. Rfd1 {[%emt 0:00:00]} c5 {[%emt 0:00:57]} 25. Rac1 {[%emt 0:00:00]} Rb4 {[%emt 0:04:36]} 26. b3 {[%emt 0:00:00]} Qxa5 {[%emt 0:00:39]} 27. Qe1 {[%emt 0:00:00]} Qb6 {[%emt 0:07:15]} 28. Bd2 {[%emt 0:00:00]} Nxb3 {[%emt 0:00:29]} 29. Bxb4 {[%emt 0:00:00]} Nxc1 {[%emt 0:00:22]} 30. Ba5 {[%emt 0:00:00]} Ne2+ {[%emt 0:00:13]} 31. Qxe2 {[%emt 0:01:54]} Qxa5 {[%emt 0:00:08]} 32. Qxe4 {[%emt 0:00:05]} Bd4 {[%emt 0:01:16]} 33. Bb3 {[%emt 0:00:10]} Qb4 {[%emt 0:01:20]} 34. Bd5 {[%emt 0:00:43]} Qb2 {[%emt 0:00:38]} 35. Qf3 {[%emt 0:00:19]} Kg7 {[%emt 0:05:28]} 36. Re1 {[%emt 0:00:20]} Bf6 {[%emt 0:00:18]} 37. g3 {[%emt 0:01:38]} a5 {[%emt 0:01:34]} 38. h4 {[%emt 0:00:07]} h5 {[%emt 0:00:09]} 39. Re4 {[%emt 0:01:17]} Rd8 {[%emt 0:02:48]} 40. Rc4 {[%emt 0:01:00]} Qb6 {[%emt 0:10:18]} 41. Rf4 {[%emt 0:00:32]} Qd6 {[%emt 0:00:24]} 42. Bb3 {[%emt 0:00:22]} Rb8 {[%emt 0:00:43]} 43. Kh2 {[%emt 0:00:43]} Qe7 {[%emt 0:02:33]} 44. Bc4 {[%emt 0:00:42]} Rb4 {[%emt 0:01:56]} 45. Qc6 {[%emt 0:00:31]} Rb2 {[%emt 0:04:03]} 46. Kg2 {[%emt 0:00:26]} Rd2 {[%emt 0:02:32]} 47. Rf3 {[%emt 0:00:37]} Rd4 {[%emt 0:00:34]} 48. Bd5 {[%emt 0:00:30]} a4 {[%emt 0:00:55]} 49. Ba2 {[%emt 0:00:24]} Qd6 {[%emt 0:00:38]} 50. Qb7 {[%emt 0:00:35]} c4 {[%emt 0:00:27]} 51. Rc3 {[%emt 0:00:32]} Rd2 {[%emt 0:01:41]} 52. Bxc4 {[%emt 0:00:29]} Bxc3 {[%emt 0:00:11]} 53. Qxf7+ {[%emt 0:00:03]} Kh6 {[%emt 0:00:11]} 54. g4 {[%emt 0:00:48]} hxg4 {[%emt 0:00:16]} 0-1

[Event "50th La Roda Open 2024"]
[Site "La Roda"]
[Date "2024.03.30"]
[Round "6.11"]
[White "Martinez Reyes, Pedro Ramon"]
[Black "Iglesias Ferreira, Andres"]
[Result "0-1"]
[ECO "B22"]
[WhiteElo "2332"]
[BlackElo "2234"]
[Annotator "RC"]
[PlyCount "68"]
[EventDate "2024.03.27"]
[EventType "swiss"]
[EventCountry "ESP"]
[SourceTitle "playchess.com"]
[Source "ChessBase"]
[SourceQuality "1"]
[TimeControl "5400+30"]

1. e4 {[%emt 0:10:23]} c5 {[%emt 0:00:08]} 2. c3 {[%emt 0:00:05]} Nf6 {[%emt 0:00:11]} 3. e5 {[%emt 0:00:06]} Nd5 {[%emt 0:00:10]} 4. Bc4 {[%emt 0:00:05]} Nb6 {[%emt 0:00:12]} 5. Bb3 {[%emt 0:00:04]} d6 {[%emt 0:00:14]} 6. exd6 {[%emt 0:00:05]} Qxd6 {[%emt 0:00:11]} 7. Nf3 {[%emt 0:00:07]} Nc6 {[%emt 0:00:43]} 8. Na3 {[%emt 0:00:16]} a6 {[%emt 0:01:00]} 9. O-O {[%emt 0:00:43]} Bf5 {[%emt 0:00:59]} 10. d4 {[%emt 0:00:28]} cxd4 {[%emt 0:00:36]} 11. Nxd4 {[%emt 0:00:03]} Nxd4 {[%emt 0:00:17]} 12. cxd4 {[%emt 0:00:04]} e6 {[%emt 0:00:13]} 13. Qf3 {[%emt 0:00:01]} Qc6 {[%emt 0:02:06]} 14. Qg3 {[%emt 0:03:18]} Bxa3 {[%emt 0:02:52]} 15. bxa3 {[%emt 0:02:25]} O-O {[%emt 0:00:12]} 16. h4 {[%emt 0:00:32]} Qe4 {[%emt 0:11:51]} 17. h5 {[%emt 0:03:00]} Nd5 {[%emt 0:05:56]} 18. Rd1 {[%emt 0:36:57]} Qg4 {[%emt 0:04:42]} 19. Qh2 {[%emt 0:01:35]} Be4 {[%emt 0:01:39]} 20. Kh1 {[%emt 0:12:34]} Qe2 {[%emt 0:15:05]} 21. Bg5 {[%emt 0:13:40]} h6 {[%emt 0:02:48]} 22. Rd2 {[%emt 0:12:58]} Qg4 {[%emt 0:09:30]} 23. Be3 {[%emt 0:00:43]} Rac8 {[%emt 0:01:46]} 24. Re1 {[%emt 0:01:44]} Rc3 {[%emt 0:01:25]} 25. Bd1 {[%emt 0:00:32]} Qf5 {[%emt 0:00:33]} 26. Kg1 {[%emt 0:00:03]} Rfc8 {[%emt 0:01:35]} 27. Qh4 {[%emt 0:00:54]} g5 {[%emt 0:09:34]} 28. hxg6 {[%emt 0:00:34]} Qxg6 {[%emt 0:00:18]} 29. Bg4 {[%emt 0:00:21]} f5 {[%emt 0:00:25]} 30. Bh3 {[%emt 0:00:15]} f4 {[%emt 0:01:35]} 31. Bxf4 {[%emt 0:00:48]} Nxf4 {[%emt 0:00:07]} 32. Qxf4 {[%emt 0:00:34]} Rxh3 {[%emt 0:00:07]} 33. f3 {[%emt 0:00:30]} Bxf3 {[%emt 0:00:40]} 34. Re3 {[%emt 0:00:32]} Rc1+ {[%emt 0:00:09]} 0-1

[Event "50th La Roda Open 2024"]
[Site "La Roda"]
[Date "2024.03.30"]
[Round "6.12"]
[White "Pranav Vijay"]
[Black "Louis, Corentin"]
[Result "1-0"]
[ECO "C10"]
[WhiteElo "2252"]
[BlackElo "2091"]
[Annotator "RC"]
[PlyCount "57"]
[EventDate "2024.03.27"]
[EventType "swiss"]
[EventCountry "ESP"]
[SourceTitle "playchess.com"]
[Source "ChessBase"]
[SourceQuality "1"]
[TimeControl "5400+30"]

1. e4 {[%emt 0:00:19]} e6 {[%emt 0:02:33]} 2. d4 {[%emt 0:00:35]} d5 {[%emt 0:00:09]} 3. Nc3 {[%emt 0:00:06]} Nc6 {[%emt 0:00:12]} 4. Nf3 {[%emt 0:08:06]} Nf6 {[%emt 0:00:41]} 5. Bg5 {[%emt 0:07:12]} Be7 {[%emt 0:00:32]} 6. Bxf6 {[%emt 0:05:20]} Bxf6 {[%emt 0:00:19]} 7. Bb5 {[%emt 0:00:05]} O-O {[%emt 0:14:05]} 8. O-O {[%emt 0:01:07]} Nb8 {[%emt 0:06:02]} 9. Re1 {[%emt 0:00:38]} c6 {[%emt 0:05:42]} 10. Bd3 {[%emt 0:03:38]} b6 {[%emt 0:01:41]} 11. e5 {[%emt 0:03:31]} Be7 {[%emt 0:00:11]} 12. Ne2 {[%emt 0:00:06]} Ba6 {[%emt 0:06:24]} 13. Bxa6 {[%emt 0:13:56]} Nxa6 {[%emt 0:00:06]} 14. Nf4 {[%emt 0:00:07]} c5 {[%emt 0:04:11]} 15. Qe2 {[%emt 0:02:26]} Nb4 {[%emt 0:00:53]} 16. Rad1 {[%emt 0:06:23]} Qc8 {[%emt 0:05:47]} 17. a3 {[%emt 0:06:01]} Nc6 {[%emt 0:01:10]} 18. c4 {[%emt 0:00:29]} dxc4 {[%emt 0:19:48]} 19. d5 {[%emt 0:00:29]} exd5 {[%emt 0:02:51]} 20. Nxd5 {[%emt 0:00:06]} Bd8 {[%emt 0:15:07]} 21. Qxc4 {[%emt 0:01:01]} Qf5 {[%emt 0:04:11]} 22. Qa4 {[%emt 0:04:47]} Rc8 {[%emt 0:00:52]} 23. Ne3 {[%emt 0:03:46]} Qh5 {[%emt 0:01:03]} 24. Qe4 {[%emt 0:00:53]} Qg6 {[%emt 0:02:18]} 25. Nf5 {[%emt 0:00:24]} Nd4 {[%emt 0:04:52]} 26. N3xd4 {[%emt 0:00:29]} cxd4 {[%emt 0:00:07]} 27. Rxd4 {[%emt 0:00:05]} Qe6 {[%emt 0:00:48]} 28. Rd6 {[%emt 0:00:34]} Qe8 {[%emt 0:00:14]} 29. Qg4 {[%emt 0:00:28]} 1-0

[Event "50th La Roda Open 2024"]
[Site "La Roda"]
[Date "2024.03.30"]
[Round "6.13"]
[White "Hurtado, Felipe"]
[Black "Ramiro Ovejero, Juan Luis"]
[Result "1/2-1/2"]
[ECO "C76"]
[WhiteElo "2087"]
[BlackElo "2316"]
[Annotator "RC"]
[PlyCount "208"]
[EventDate "2024.03.27"]
[EventType "swiss"]
[EventCountry "ESP"]
[SourceTitle "playchess.com"]
[Source "ChessBase"]
[SourceQuality "1"]
[TimeControl "5400+30"]

1. e4 {[%emt 0:00:04]} e5 {[%emt 0:00:06]} 2. Nf3 {[%emt 0:00:05]} Nc6 {[%emt 0:00:05]} 3. Bb5 {[%emt 0:00:07]} a6 {[%emt 0:00:08]} 4. Ba4 {[%emt 0:00:06]} d6 {[%emt 0:00:10]} 5. c3 {[%emt 0:00:26]} Bd7 {[%emt 0:00:13]} 6. O-O {[%emt 0:00:56]} g6 {[%emt 0:00:48]} 7. d4 {[%emt 0:00:52]} Bg7 {[%emt 0:00:33]} 8. d5 {[%emt 0:00:22]} Nce7 {[%emt 0:00:12]} 9. c4 {[%emt 0:00:17]} b5 {[%emt 0:00:36]} 10. Bc2 {[%emt 0:00:15]} f5 {[%emt 0:07:09]} 11. Bg5 {[%emt 0:25:14]} h6 {[%emt 0:06:08]} 12. Bxe7 {[%emt 0:00:08]} Nxe7 {[%emt 0:00:52]} 13. b4 {[%emt 0:10:35]} bxc4 {[%emt 0:04:30]} 14. Nc3 {[%emt 0:01:00]} O-O {[%emt 0:01:08]} 15. Nd2 {[%emt 0:00:33]} Qb8 {[%emt 0:11:55]} 16. Rb1 {[%emt 0:11:17]} Qa7 {[%emt 0:03:00]} 17. a4 {[%emt 0:03:52]} a5 {[%emt 0:07:58]} 18. b5 {[%emt 0:03:41]} Qd4 {[%emt 0:03:52]} 19. Ne2 {[%emt 0:00:55]} Qc5 {[%emt 0:00:38]} 20. Rc1 {[%emt 0:00:31]} Nc8 {[%emt 0:06:25]} 21. Bb3 {[%emt 0:03:15]} Nb6 {[%emt 0:00:54]} 22. Bxc4 {[%emt 0:04:35]} Qb4 {[%emt 0:02:24]} 23. Bb3 {[%emt 0:16:38]} fxe4 {[%emt 0:05:26]} 24. Ng3 {[%emt 0:01:11]} Rf4 {[%emt 0:04:29]} 25. Rxc7 {[%emt 0:06:55]} Bg4 {[%emt 0:12:39]} 26. Qe1 {[%emt 0:01:15]} Raf8 {[%emt 0:01:59]} 27. Ngxe4 {[%emt 0:02:27]} Bf5 {[%emt 0:01:04]} 28. Bc2 {[%emt 0:02:40]} Nxd5 {[%emt 0:08:31]} 29. Rc4 {[%emt 0:02:03]} Qb2 {[%emt 0:01:14]} 30. g3 {[%emt 0:00:06]} Nb4 {[%emt 0:02:54]} 31. Bb3 {[%emt 0:01:19]} Rxe4 {[%emt 0:03:21]} 32. Rxb4+ {[%emt 0:00:32]} Qxb3 {[%emt 0:00:36]} 33. Rxb3 {[%emt 0:00:08]} Rxe1 {[%emt 0:00:05]} 34. Rxe1 {[%emt 0:00:03]} Bc2 {[%emt 0:00:37]} 35. Rc3 {[%emt 0:01:48]} Bxa4 {[%emt 0:00:07]} 36. b6 {[%emt 0:00:13]} e4 {[%emt 0:00:31]} 37. Rc4 {[%emt 0:01:22]} Bb5 {[%emt 0:00:44]} 38. Rcxe4 {[%emt 0:00:30]} Bc3 {[%emt 0:00:47]} 39. Rd1 {[%emt 0:00:59]} d5 {[%emt 0:00:22]} 40. Re3 {[%emt 0:00:18]} Bd4 {[%emt 0:01:11]} 41. Rf3 {[%emt 0:00:18]} Rb8 {[%emt 0:00:23]} 42. Rb1 {[%emt 0:00:25]} Be2 {[%emt 0:01:12]} 43. Ra3 {[%emt 0:00:40]} Rxb6 {[%emt 0:01:47]} 44. Rxb6 {[%emt 0:00:46]} Bxb6 {[%emt 0:00:04]} 45. Nb3 {[%emt 0:00:05]} d4 {[%emt 0:01:02]} 46. Nxa5 {[%emt 0:00:13]} Bc5 {[%emt 0:00:38]} 47. Ra2 {[%emt 0:00:45]} Bd1 {[%emt 0:00:21]} 48. Rd2 {[%emt 0:00:39]} Ba4 {[%emt 0:00:19]} 49. Nc4 {[%emt 0:00:24]} Bb5 {[%emt 0:00:18]} 50. Ne5 {[%emt 0:00:18]} Kg7 {[%emt 0:00:31]} 51. Nf3 {[%emt 0:00:35]} d3 {[%emt 0:00:12]} 52. Ne5 {[%emt 0:00:09]} Bb4 {[%emt 0:00:10]} 53. Rxd3 {[%emt 0:00:27]} Bxd3 {[%emt 0:00:05]} 54. Nxd3 {[%emt 0:00:04]} Bd6 {[%emt 0:00:05]} 55. Kg2 {[%emt 0:00:24]} h5 {[%emt 0:00:15]} 56. Kf3 {[%emt 0:00:14]} Kf6 {[%emt 0:00:27]} 57. h3 {[%emt 0:00:30]} Kf5 {[%emt 0:00:09]} 58. Ne1 {[%emt 0:00:25]} Bb4 {[%emt 0:00:44]} 59. Ng2 {[%emt 0:00:13]} Bd6 {[%emt 0:00:19]} 60. Nh4+ {[%emt 0:00:40]} Kf6 {[%emt 0:00:06]} 61. g4 {[%emt 0:00:53]} hxg4+ {[%emt 0:00:44]} 62. hxg4 {[%emt 0:00:11]} Ba3 {[%emt 0:00:24]} 63. Kg3 {[%emt 0:00:46]} Bd6+ {[%emt 0:00:08]} 64. Kh3 {[%emt 0:00:13]} Bc5 {[%emt 0:00:30]} 65. f3 {[%emt 0:00:21]} Bd6 {[%emt 0:00:13]} 66. Ng2 {[%emt 0:00:59]} Kg5 {[%emt 0:00:21]} 67. Ne3 {[%emt 0:00:32]} Kf4 {[%emt 0:00:44]} 68. Nc4 {[%emt 0:00:06]} Bc7 {[%emt 0:00:43]} 69. Kg2 {[%emt 0:00:05]} Bb8 {[%emt 0:00:49]} 70. Kf2 {[%emt 0:00:21]} Ba7+ {[%emt 0:00:44]} 71. Ke2 {[%emt 0:00:01]} Bc5 {[%emt 0:00:14]} 72. Nd2 {[%emt 0:00:15]} Bb4 {[%emt 0:00:41]} 73. Ne4 {[%emt 0:00:06]} Be7 {[%emt 0:00:32]} 74. Nf2 {[%emt 0:00:07]} Ke5 {[%emt 0:00:46]} 75. Nd3+ {[%emt 0:00:17]} Kf6 {[%emt 0:00:13]} 76. f4 {[%emt 0:00:56]} Bd6 {[%emt 0:00:16]} 77. Kf3 {[%emt 0:00:11]} Ke6 {[%emt 0:00:11]} 78. Ke4 {[%emt 0:00:07]} Ba3 {[%emt 0:01:10]} 79. Ne1 {[%emt 0:00:20]} Bb2 {[%emt 0:00:26]} 80. Nf3 {[%emt 0:00:18]} Kf6 {[%emt 0:00:24]} 81. Ne5 {[%emt 0:01:10]} Bc1 {[%emt 0:01:31]} 82. g5+ {[%emt 0:00:24]} Kg7 {[%emt 0:00:04]} 83. Nd3 {[%emt 0:00:14]} Bd2 {[%emt 0:00:05]} 84. Kd5 {[%emt 0:01:29]} Kf7 {[%emt 0:00:15]} 85. Kd6 {[%emt 0:00:29]} Be3 {[%emt 0:00:17]} 86. Kd5 {[%emt 0:00:42]} Bd2 {[%emt 0:00:13]} 87. Ne5+ {[%emt 0:00:49]} Kg7 {[%emt 0:00:07]} 88. Ke4 {[%emt 0:00:02]} Bc1 {[%emt 0:00:08]} 89. Nd7 {[%emt 0:03:24]} Kf7 {[%emt 0:01:14]} 90. Nf6 {[%emt 0:00:20]} Bb2 {[%emt 0:00:17]} 91. Nd5 {[%emt 0:00:17]} Ke6 {[%emt 0:00:20]} 92. Ne3 {[%emt 0:00:32]} Bc1 {[%emt 0:00:18]} 93. Ng4 {[%emt 0:00:47]} Kf7 {[%emt 0:00:05]} 94. Ke5 {[%emt 0:00:58]} Bd2 {[%emt 0:00:33]} 95. Nh6+ {[%emt 0:00:24]} Kg7 {[%emt 0:00:11]} 96. Ng4 {[%emt 0:00:07]} Kf7 {[%emt 0:00:05]} 97. Nf2 {[%emt 0:00:21]} Bc3+ {[%emt 0:00:24]} 98. Kd5 {[%emt 0:00:12]} Bd2 {[%emt 0:00:12]} 99. Nd3 {[%emt 0:00:17]} Be3 {[%emt 0:00:12]} 100. Kd6 {[%emt 0:00:46]} Bd2 {[%emt 0:00:11]} 101. Ne5+ {[%emt 0:00:59]} Kg7 {[%emt 0:00:04]} 102. Nxg6 {[%emt 0:00:13]} Kxg6 {[%emt 0:00:04]} 103. f5+ {[%emt 0:00:05]} Kxf5 {[%emt 0:00:02]} 104. g6 {[%emt 0:00:06]} Kxg6 {[%emt 0:09:57]} 1/2-1/2

[Event "50th La Roda Open 2024"]
[Site "La Roda"]
[Date "2024.03.30"]
[Round "6.14"]
[White "Portero Rubio, Martin"]
[Black "Alfaya Marcelo, Roberto"]
[Result "1-0"]
[ECO "B44"]
[WhiteElo "2067"]
[BlackElo "2311"]
[Annotator "RC"]
[PlyCount "103"]
[EventDate "2024.03.27"]
[EventType "swiss"]
[EventCountry "ESP"]
[SourceTitle "playchess.com"]
[Source "ChessBase"]
[SourceQuality "1"]
[TimeControl "5400+30"]

1. e4 {[%emt 0:00:01]} c5 {[%emt 0:00:07]} 2. Nf3 {[%emt 0:00:07]} e6 {[%emt 0:00:06]} 3. d4 {[%emt 0:00:05]} cxd4 {[%emt 0:00:05]} 4. Nxd4 {[%emt 0:00:02]} Nc6 {[%emt 0:00:07]} 5. Nb5 {[%emt 1:32:45]} d6 {[%emt 0:00:19]} 6. c4 {[%emt 0:00:00]} a6 {[%emt 0:01:31]} 7. N5c3 {[%emt 0:00:00]} Nf6 {[%emt 0:01:14]} 8. Be2 {[%emt 0:00:00]} Be7 {[%emt 0:00:18]} 9. O-O {[%emt 0:00:00]} O-O {[%emt 0:00:07]} 10. Be3 {[%emt 0:00:00]} Qc7 {[%emt 0:07:01]} 11. Na3 {[%emt 0:00:00]} b6 {[%emt 0:02:57]} 12. Rc1 {[%emt 0:00:00]} Ne5 {[%emt 0:11:13]} 13. f3 {[%emt 0:00:00]} Bb7 {[%emt 0:01:19]} 14. Qd2 {[%emt 0:00:00]} Rac8 {[%emt 0:01:53]} 15. Rfd1 {[%emt 0:00:00]} Rfd8 {[%emt 0:00:35]} 16. Kh1 {[%emt 0:00:00]} Ned7 {[%emt 0:08:26]} 17. Bf1 {[%emt 0:00:00]} Qb8 {[%emt 0:02:36]} 18. Qf2 {[%emt 0:00:00]} d5 {[%emt 0:02:48]} 19. cxd5 {[%emt 0:00:00]} exd5 {[%emt 0:00:20]} 20. exd5 {[%emt 0:00:00]} b5 {[%emt 0:00:35]} 21. Ba7 {[%emt 0:00:00]} Qa8 {[%emt 0:04:03]} 22. d6 {[%emt 0:00:00]} Bf8 {[%emt 0:00:09]} 23. b4 {[%emt 0:00:00]} Rc6 {[%emt 0:06:15]} 24. Naxb5 {[%emt 0:00:00]} axb5 {[%emt 0:01:16]} 25. Nxb5 {[%emt 0:00:00]} Rxc1 {[%emt 0:03:10]} 26. Rxc1 {[%emt 0:00:00]} Nd5 {[%emt 0:05:22]} 27. Nc7 {[%emt 0:00:00]} Nxc7 {[%emt 0:00:08]} 28. dxc7 {[%emt 0:00:00]} Rc8 {[%emt 0:00:26]} 29. b5 {[%emt 0:00:00]} Ba3 {[%emt 0:13:13]} 30. Rc2 {[%emt 0:00:00]} Nf8 {[%emt 0:02:17]} 31. Qe3 {[%emt 0:00:13]} Bd6 {[%emt 0:01:35]} 32. b6 {[%emt 0:00:34]} Re8 {[%emt 0:04:06]} 33. Qd2 {[%emt 0:02:20]} Re6 {[%emt 0:00:30]} 34. a4 {[%emt 0:05:27]} Qe8 {[%emt 0:12:04]} 35. Rc1 {[%emt 0:01:39]} Rh6 {[%emt 0:00:53]} 36. Qg5 {[%emt 0:03:44]} Bxh2 {[%emt 0:00:57]} 37. Qxh6 {[%emt 0:01:25]} gxh6 {[%emt 0:00:02]} 38. Kxh2 {[%emt 0:00:28]} Bc8 {[%emt 0:04:22]} 39. Rd1 {[%emt 0:00:28]} Ne6 {[%emt 0:02:21]} 40. Bb5 {[%emt 0:00:33]} Qe7 {[%emt 0:00:14]} 41. Bd7 {[%emt 0:00:28]} Qh4+ {[%emt 0:02:56]} 42. Kg1 {[%emt 0:00:01]} Nf4 {[%emt 0:00:18]} 43. Bxc8 {[%emt 0:00:43]} Qg3 {[%emt 0:00:05]} 44. Rd2 {[%emt 0:00:50]} Qe1+ {[%emt 0:00:43]} 45. Kh2 {[%emt 0:00:01]} Nh5 {[%emt 0:00:50]} 46. Ba6 {[%emt 0:00:41]} Qg3+ {[%emt 0:00:55]} 47. Kg1 {[%emt 0:00:15]} Qe1+ {[%emt 0:00:11]} 48. Bf1 {[%emt 0:00:14]} Qc1 {[%emt 0:00:38]} 49. b7 {[%emt 0:00:25]} Qxd2 {[%emt 0:01:24]} 50. c8=Q+ {[%emt 0:00:07]} Kg7 {[%emt 0:00:00]} 51. Qg4+ {[%emt 0:00:08]} Kf6 {[%emt 0:00:00]} 52. Qd4+ {[%emt 0:00:08]} 1-0

[Event "50th La Roda Open 2024"]
[Site "La Roda"]
[Date "2024.03.30"]
[Round "6.15"]
[White "Blom, Vincent"]
[Black "Roquero Redondo, Miguel"]
[Result "1/2-1/2"]
[ECO "A13"]
[WhiteElo "2307"]
[BlackElo "2086"]
[Annotator "RC"]
[PlyCount "84"]
[EventDate "2024.03.27"]
[EventType "swiss"]
[EventCountry "ESP"]
[SourceTitle "playchess.com"]
[Source "ChessBase"]
[SourceQuality "1"]
[TimeControl "5400+30"]

1. c4 {[%emt 0:02:47]} e6 {[%emt 0:00:11]} 2. g3 {[%emt 0:00:50]} Nf6 {[%emt 0:00:18]} 3. Bg2 {[%emt 0:00:15]} d5 {[%emt 0:00:47]} 4. Nf3 {[%emt 0:00:25]} dxc4 {[%emt 0:02:42]} 5. O-O {[%emt 0:06:07]} Nbd7 {[%emt 0:05:49]} 6. Na3 {[%emt 0:11:11]} Bxa3 {[%emt 0:15:48]} 7. bxa3 {[%emt 0:00:07]} O-O {[%emt 0:01:09]} 8. Qc2 {[%emt 0:05:03]} Rb8 {[%emt 0:06:19]} 9. Rb1 {[%emt 0:21:10]} a6 {[%emt 0:09:03]} 10. a4 {[%emt 0:02:31]} b6 {[%emt 0:19:28]} 11. Ba3 {[%emt 0:04:19]} c5 {[%emt 0:01:46]} 12. Qxc4 {[%emt 0:01:15]} Bb7 {[%emt 0:00:52]} 13. d4 {[%emt 0:00:59]} Qc8 {[%emt 0:02:20]} 14. dxc5 {[%emt 0:02:07]} Bd5 {[%emt 0:01:15]} 15. Qf4 {[%emt 0:11:44]} bxc5 {[%emt 0:02:30]} 16. Ra1 {[%emt 0:05:32]} Qc6 {[%emt 0:02:54]} 17. Rfc1 {[%emt 0:02:39]} Rfc8 {[%emt 0:02:07]} 18. Bf1 {[%emt 0:03:24]} c4 {[%emt 0:24:12]} 19. Be7 {[%emt 0:05:39]} Qxa4 {[%emt 0:00:00]} 20. Nd2 {[%emt 0:02:22]} e5 {[%emt 0:00:00]} 21. Qe3 {[%emt 0:01:14]} Re8 {[%emt 0:00:00]} 22. Qa3 {[%emt 0:03:28]} Qc6 {[%emt 0:00:00]} 23. e4 {[%emt 0:01:55]} Nxe4 {[%emt 0:00:00]} 24. Nxe4 {[%emt 0:00:47]} Bxe4 {[%emt 0:00:00]} 25. Rxc4 {[%emt 0:01:34]} Qg6 {[%emt 0:00:00]} 26. Qd6 {[%emt 0:00:54]} Bf5 {[%emt 0:00:09]} 27. Qxg6 {[%emt 0:01:00]} hxg6 {[%emt 0:00:43]} 28. Bd6 {[%emt 0:00:10]} Rb6 {[%emt 0:01:32]} 29. Bc7 {[%emt 0:00:38]} Rb2 {[%emt 0:00:29]} 30. a4 {[%emt 0:01:31]} e4 {[%emt 0:01:53]} 31. Rc3 {[%emt 0:00:20]} a5 {[%emt 0:01:07]} 32. Bb5 {[%emt 0:01:16]} Re7 {[%emt 0:00:35]} 33. Bd6 {[%emt 0:00:18]} Re6 {[%emt 0:00:22]} 34. Rd1 {[%emt 0:01:23]} Ne5 {[%emt 0:00:26]} 35. Ba3 {[%emt 0:00:25]} Ra2 {[%emt 0:00:15]} 36. Rd8+ {[%emt 0:00:31]} Kh7 {[%emt 0:00:10]} 37. Rcc8 {[%emt 0:00:30]} g5 {[%emt 0:00:19]} 38. Bc1 {[%emt 0:00:28]} Kg6 {[%emt 0:00:22]} 39. Be3 {[%emt 0:00:34]} Bh3 {[%emt 0:00:28]} 40. Rc1 {[%emt 0:00:17]} Rf6 {[%emt 0:00:56]} 41. Rd5 {[%emt 0:00:48]} Rfxf2 {[%emt 0:01:44]} 42. Bxf2 {[%emt 0:01:03]} Nf3+ {[%emt 0:00:30]} 1/2-1/2

[Event "50th La Roda Open 2024"]
[Site "La Roda"]
[Date "2024.03.30"]
[Round "6.16"]
[White "Fernandez Barrera, Victor"]
[Black "Jimenez Villena, Francisco Jose"]
[Result "1-0"]
[ECO "B03"]
[WhiteElo "2249"]
[BlackElo "2074"]
[Annotator "RC"]
[PlyCount "98"]
[EventDate "2024.03.27"]
[EventType "swiss"]
[EventCountry "ESP"]
[SourceTitle "playchess.com"]
[Source "ChessBase"]
[SourceQuality "1"]
[TimeControl "5400+30"]

1. e4 {[%emt 0:00:03]} Nf6 {[%emt 0:00:14]} 2. e5 {[%emt 0:00:06]} Nd5 {[%emt 0:00:06]} 3. d4 {[%emt 0:00:10]} d6 {[%emt 0:00:08]} 4. c4 {[%emt 0:00:12]} Nb6 {[%emt 0:00:07]} 5. exd6 {[%emt 0:00:24]} cxd6 {[%emt 0:00:56]} 6. Nc3 {[%emt 0:00:17]} g6 {[%emt 0:01:08]} 7. Be3 {[%emt 0:00:17]} Bg7 {[%emt 0:00:08]} 8. Rc1 {[%emt 0:00:18]} O-O {[%emt 0:00:12]} 9. b3 {[%emt 0:00:23]} Bf5 {[%emt 0:06:23]} 10. Nf3 {[%emt 0:05:22]} Nc6 {[%emt 0:04:14]} 11. d5 {[%emt 0:05:29]} Nb4 {[%emt 0:09:31]} 12. Nd4 {[%emt 0:03:33]} Bd7 {[%emt 0:06:45]} 13. a3 {[%emt 0:06:19]} Na6 {[%emt 0:00:11]} 14. Be2 {[%emt 0:03:25]} Nc7 {[%emt 0:13:37]} 15. O-O {[%emt 0:01:58]} e6 {[%emt 0:12:30]} 16. dxe6 {[%emt 0:01:23]} fxe6 {[%emt 0:01:57]} 17. Nf3 {[%emt 0:06:24]} Bc6 {[%emt 0:04:13]} 18. Qd2 {[%emt 0:09:36]} d5 {[%emt 0:03:55]} 19. c5 {[%emt 0:05:20]} Nc8 {[%emt 0:01:26]} 20. Bh6 {[%emt 0:06:33]} Qf6 {[%emt 0:03:29]} 21. Bxg7 {[%emt 0:00:46]} Kxg7 {[%emt 0:00:50]} 22. Qe3 {[%emt 0:05:18]} Ne7 {[%emt 0:00:32]} 23. Bd3 {[%emt 0:07:44]} Rad8 {[%emt 0:02:09]} 24. Ne2 {[%emt 0:03:06]} d4 {[%emt 0:03:51]} 25. Nfxd4 {[%emt 0:02:42]} e5 {[%emt 0:06:07]} 26. Nxc6 {[%emt 0:01:06]} bxc6 {[%emt 0:01:23]} 27. Be4 {[%emt 0:01:24]} Ncd5 {[%emt 0:01:16]} 28. Qh3 {[%emt 0:05:26]} Nf5 {[%emt 0:02:07]} 29. b4 {[%emt 0:03:21]} Nd4 {[%emt 0:05:26]} 30. Nxd4 {[%emt 0:00:01]} exd4 {[%emt 0:00:13]} 31. Bxd5 {[%emt 0:01:26]} Rxd5 {[%emt 0:00:04]} 32. b5 {[%emt 0:03:08]} cxb5 {[%emt 0:01:32]} 33. c6 {[%emt 0:00:08]} Qf5 {[%emt 0:03:23]} 34. Qg3 {[%emt 0:08:01]} Rc8 {[%emt 0:00:14]} 35. h3 {[%emt 0:01:22]} Qf6 {[%emt 0:03:12]} 36. c7 {[%emt 0:01:15]} Rd7 {[%emt 0:00:53]} 37. Rfd1 {[%emt 0:00:15]} Qd6 {[%emt 0:00:58]} 38. Qb3 {[%emt 0:01:36]} a6 {[%emt 0:02:01]} 39. Qb2 {[%emt 0:01:12]} Kf7 {[%emt 0:00:44]} 40. Qb3+ {[%emt 0:01:18]} Kg7 {[%emt 0:01:19]} 41. Qb2 {[%emt 0:00:01]} Kf8 {[%emt 0:00:22]} 42. g3 {[%emt 0:02:12]} Kf7 {[%emt 0:00:52]} 43. Qb3+ {[%emt 0:00:35]} Qd5 {[%emt 0:00:05]} 44. Qb2 {[%emt 0:00:40]} Ke8 {[%emt 0:01:05]} 45. Rd2 {[%emt 0:00:46]} Kf7 {[%emt 0:00:39]} 46. Rcd1 {[%emt 0:00:19]} Rcxc7 {[%emt 0:00:29]} 47. Rxd4 {[%emt 0:00:05]} Qe6 {[%emt 0:00:08]} 48. Qd2 {[%emt 0:00:35]} Rxd4 {[%emt 0:00:13]} 49. Qxd4 {[%emt 0:00:01]} Qf6 {[%emt 0:01:43]} 1-0